bitfinex-derivatives/quotes_SOLF0:USTF0_20250211
["timestamp","ask_amount","ask_price","bid_price","bid_amount"]
[1739285298078,0.03823245,199.15,199.09,5.022]
[1739285298270,0.03823245,199.15,199.05,1.5536]
[1739285298471,0.03823245,199.15,199.09,5.022]
[1739285298675,0.03823245,199.15,199.05,1.5536]
[1739285299381,21.78977016,199.13,198.99,21.78977016]
[1739285299875,0.0367424,199.1,198.99,21.78977016]
[1739285300066,0.0367424,199.1,199.02,21.78977016]
[1739285300268,0.0367424,199.1,199.06,5.0228]
[1739285300476,0.0367424,199.1,199.02,21.78977016]
[1739285300870,0.0367424,199.1,199.06,5.0227]
[1739285301073,0.0367424,199.1,199.02,21.78977016]
[1739285301673,0.0367424,199.1,199.05,21.78977016]
[1739285301973,0.0367424,199.1,199.09,5.0221]
[1739285303871,1.6171,199.23,199.08,21.78977016]
[1739285304065,193.9746,199.29,199.14,21.78977016]
[1739285304265,1.4968,199.28,199.19,5.0193]
[1739285304471,5.0183,199.24,199.11,21.78977016]
[1739285304769,193.9746,199.29,199.11,21.78977016]
[1739285304966,0.03727479,199.19,199.16,0.03815033]
[1739285305280,5.0186,199.23,199.11,21.78977016]
[1739285305576,0.03192086,199.19,199.16,5.05625539]
[1739285305778,23.28657016,199.27,199.16,0.03615539]
[1739285305779,38.32657016,199.27,199.16,0.03615539]
[1739285305981,0.03834482,199.19,199.16,0.03615539]
[1739285306278,21.78977016,199.19,199.16,0.03615539]
[1739285306478,21.82472557,199.19,199.16,0.03615539]
[1739285306775,5.02,199.17,199.16,0.03615539]
[1739285307077,5.0199,199.18,199.16,0.03615539]
[1739285307277,0.03495541,199.19,199.16,0.03615539]
[1739285308778,5.0198,199.18,199.16,0.03615539]
[1739285309782,5.02,199.17,199.16,0.03615539]
[1739285310881,5.0212,199.13,199.06,1.506]
[1739285311878,5.0212,199.13,199.08,5.0221]
[1739285312177,0.0362738,199.11,199.08,5.0221]
[1739285312781,0.0362738,199.11,199.07,5.0225]
[1739285313374,5.0578738,199.11,199.07,5.0225]
[1739285313773,5.0218,199.1,199.06,1.506]
[1739285314079,0.0362738,199.11,199.06,1.506]
[1739285314578,0.0362738,199.11,199.09,5.0218]
[1739285314779,0.0362738,199.11,199.06,1.506]
[1739285315686,0.0362738,199.11,199.06,15.12137039]
[1739285315884,0.0362738,199.11,199.07,5.0224]
[1739285316082,0.0362738,199.11,199.06,15.12137039]
[1739285316383,0.0362738,199.11,199.1,5.0218]
[1739285316878,0.0362738,199.11,199.03,16.71617039]
[1739285317182,0.0362738,199.11,199.05,5.0229]
[1739285317183,5.0218,199.1,199.05,5.0229]
[1739285317483,5.0218,199.1,199.03,16.71617039]
[1739285317782,5.0218,199.1,199.06,5.0228]
[1739285319182,0.0362738,199.11,199.03,16.71617039]
[1739285319379,0.0362738,199.11,199.01,1.5794]
[1739285319585,0.0362738,199.11,198.91,10.0529]
[1739285319586,0.0362738,199.11,198.97,13.61537039]
[1739285319779,1.5820738,199.11,198.97,13.61537039]
[1739285319984,1.5458,199.11,198.97,13.61537039]
[1739285320185,0.03768177,199.06,198.97,13.61537039]
[1739285320583,0.03768177,199.06,198.99,5.0244]
[1739285320986,5.0232,199.05,198.99,5.0244]
[1739285322180,0.03768177,199.06,198.97,13.61537039]
[1739285322386,0.03768177,199.06,199.0,5.0243]
[1739285322583,0.03768177,199.06,199.0,13.61537039]
[1739285322982,0.03768177,199.06,199.01,4.5147]
[1739285323687,0.03768177,199.06,199.01,2.966]
[1739285324088,0.03768177,199.06,198.97,13.61537039]
[1739285324287,13.61537039,199.12,199.0,13.61537039]
[1739285324488,0.03379747,199.03,199.0,13.61537039]
[1739285324693,5.0227,199.07,199.0,13.61537039]
[1739285324895,0.03564181,199.03,199.0,13.61537039]
[1739285325093,0.03564181,199.03,199.02,5.0238]
[1739285325793,0.03564181,199.03,199.0,13.61537039]
[1739285326093,0.03564181,199.03,199.01,5.024]
[1739285326298,0.03564181,199.03,198.97,13.61537039]
[1739285326792,0.03564181,199.03,199.0,13.61537039]
[1739285327895,0.03564181,199.03,199.02,5.0238]
[1739285328395,5.0216,199.11,199.07,5.0226]
[1739285328793,5.0216,199.11,199.04,13.61537039]
[1739285329098,15.19637039,199.16,199.04,13.61537039]
[1739285329296,5.0224,199.08,199.01,18.16717039]
[1739285329495,0.0338796,199.12,199.08,0.03646375]
[1739285329695,13.61537039,199.13,199.01,18.16717039]
[1739285329893,0.03459364,199.12,199.08,0.03679865]
[1739285330897,5.0222,199.09,199.08,0.03679865]
[1739285331991,5.0217,199.11,199.08,0.03679865]
[1739285332200,0.03459364,199.12,199.08,0.03679865]
[1739285332702,5.022,199.1,199.08,0.03679865]
[1739285332898,0.03459364,199.12,199.08,0.03679865]
[1739285333100,5.0221,199.09,199.08,0.03679865]
[1739285340901,5.0221,199.09,198.98,13.61537039]
[1739285340902,5.0229,199.06,198.99,5.0245]
[1739285341104,5.0229,199.06,198.9,10.0537]
[1739285341105,13.61537039,199.07,198.96,1.4703]
[1739285341502,13.61537039,199.07,198.98,5.0248]
[1739285341704,13.61537039,199.07,198.96,1.4703]
[1739285342005,5.0242,199.01,198.97,5.025]
[1739285342206,0.03613752,199.03,198.96,1.4703]
[1739285342705,0.03613752,199.03,198.97,5.0251]
[1739285342905,0.03613752,199.03,198.96,1.4703]
[1739285344606,5.0238,199.02,198.96,1.4703]
[1739285344806,0.03613752,199.03,198.96,1.4703]
[1739285345111,5.0241,199.01,198.96,1.4703]
[1739285345310,0.03613752,199.03,198.94,5.0258]
[1739285345505,0.03613752,199.03,198.91,3.068]
[1739285345701,5.0242,199.01,198.93,5.0259]
[1739285345906,13.61537039,199.04,198.93,5.0259]
[1739285346201,0.03838669,198.99,198.91,3.068]
[1739285346405,0.03838669,198.99,198.93,5.0261]
[1739285347003,5.0253,198.97,198.91,3.068]
[1739285347209,0.03838669,198.99,198.91,3.068]
[1739285347913,5.0249,198.98,198.91,3.068]
[1739285348204,13.61537039,198.98,198.91,3.068]
[1739285348609,0.03838669,198.99,198.91,3.068]
[1739285348911,0.03838669,198.99,198.92,13.61537039]
[1739285349805,0.03838669,198.99,198.96,5.0253]
[1739285350303,0.03838669,198.99,198.95,5.0256]
[1739285350508,0.03838669,198.99,198.92,13.61537039]
[1739285350904,0.03838669,198.99,198.94,5.0258]
[1739285351107,0.03838669,198.99,198.92,13.61537039]
[1739285351606,0.03838669,198.99,198.95,5.0254]
[1739285352208,0.03838669,198.99,198.93,5.0258]
[1739285352510,0.03838669,198.99,198.92,13.61537039]
[1739285352811,0.03838669,198.99,198.96,5.0252]
[1739285353012,0.03838669,198.99,198.92,13.61537039]
[1739285353214,0.03838669,198.99,198.91,3.068]
[1739285353915,5.06318669,198.99,198.92,5.0261]
[1739285354112,5.06318669,198.99,198.9,1.6209]
[1739285355008,0.03838669,198.99,198.94,5.0258]
[1739285355208,0.03838669,198.99,198.92,13.61537039]
[1739285355403,0.03838669,198.99,198.91,3.0223]
[1739285355605,5.0251,198.97,198.92,5.0261]
[1739285355815,5.0251,198.97,198.91,3.0223]
[1739285356415,5.0253,198.96,198.89,18.64227039]
[1739285356614,13.61537039,199.01,198.86,13.61537039]
[1739285356815,0.03225471,198.94,198.89,13.61537039]
[1739285358718,0.03225471,198.94,198.92,5.0263]
[1739285358920,191.0,199.07,198.92,13.61537039]
[1739285359115,1.4738,199.08,198.97,13.61537039]
[1739285360010,0.03817998,199.04,199.01,0.03532917]
[1739285361421,5.06157998,199.04,199.01,0.03532917]
[1739285361619,0.03817998,199.04,199.01,0.03532917]
[1739285361916,5.0236,199.03,199.01,0.03532917]
[1739285362110,0.03817998,199.04,199.01,0.03532917]
[1739285362516,5.0238,199.02,199.01,0.03532917]
[1739285363520,5.0251,198.97,198.91,13.61537039]
[1739285363725,5.0251,198.97,198.89,5.0269]
[1739285364122,5.0251,198.97,198.88,13.61537039]
[1739285364617,5.0249,198.98,198.88,13.61537039]
[1739285364821,0.03717054,198.94,198.88,13.61537039]
[1739285365124,0.03717054,198.94,198.91,5.0265]
[1739285365927,0.03717054,198.94,198.9,5.0268]
[1739285366129,0.03717054,198.94,198.88,13.61537039]
[1739285366630,0.03717054,198.94,198.89,5.0269]
[1739285366928,0.03717054,198.94,198.88,13.61537039]
[1739285367325,0.03717054,198.94,198.85,13.61537039]
[1739285368729,5.0263,198.93,198.88,5.0273]
[1739285368930,0.03717054,198.94,198.88,5.0273]
[1739285369225,0.03717054,198.94,198.88,13.61537039]
[1739285370622,0.03717054,198.94,198.89,5.0269]
[1739285370821,0.03717054,198.94,198.88,13.61537039]
[1739285371422,5.06307054,198.94,198.89,5.0269]
[1739285372223,0.03717054,198.94,198.9,5.0269]
[1739285373223,5.06307054,198.94,198.88,13.61537039]
[1739285374031,0.03717054,198.94,198.88,13.61537039]
[1739285375335,5.0246,198.99,198.91,13.61537039]
[1739285375631,288.88086603,199.07,198.94,13.61537039]
[1739285375831,5.0247,198.99,198.94,13.61537039]
[1739285376224,288.88086603,199.07,198.94,13.61537039]
[1739285376534,0.03448023,198.98,198.95,0.03341936]
[1739285376737,288.88086603,199.07,198.94,13.61537039]
[1739285376923,0.03838034,198.98,198.95,0.03392154]
[1739285377125,0.0363374,198.98,198.91,13.61537039]
[1739285377428,288.88086603,199.07,198.84,1.6248]
[1739285377429,13.61537039,199.02,198.95,0.03169802]
[1739285377735,13.61537039,199.02,198.88,13.61537039]
[1739285377936,0.03548931,199.0,198.97,0.03507542]
[1739285378132,5.0254,198.96,198.9,5.0267]
[1739285378532,0.03639243,198.95,198.91,0.03427844]
[1739285379335,5.06209243,198.95,198.91,0.03427844]
[1739285380236,5.0261,198.93,198.91,0.03427844]
[1739285381036,5.0259,198.94,198.91,0.03427844]
[1739285381438,0.03639243,198.95,198.91,0.03427844]
[1739285382935,5.0259,198.94,198.91,0.03427844]
[1739285383333,0.03639243,198.95,198.91,0.03427844]
[1739285384442,5.06199243,198.95,198.91,0.03427844]
[1739285384639,0.03639243,198.95,198.91,0.03427844]
[1739285387334,5.06199243,198.95,198.91,0.03427844]
[1739285388143,0.03639243,198.95,198.91,0.03427844]
[1739285389045,0.03639243,198.95,198.92,5.0263]
[1739285389244,0.03639243,198.95,198.91,0.03427844]
[1739285389543,0.03639243,198.95,198.91,13.64964883]
[1739285390543,0.03639243,198.95,198.91,0.03427844]
[1739285390742,0.03639243,198.95,198.92,5.0263]
[1739285391440,5.06199243,198.95,198.91,0.03427844]
[1739285391745,0.03639243,198.95,198.91,0.03427844]
[1739285392145,5.06209243,198.95,198.91,0.03427844]
[1739285392647,0.03639243,198.95,198.91,0.03427844]
[1739285393541,5.0259,198.94,198.91,0.03427844]
[1739285395446,0.03639243,198.95,198.91,0.03427844]
[1739285395744,5.0259,198.94,198.91,0.03427844]
[1739285396047,0.03639243,198.95,198.91,0.03427844]
[1739285396248,0.03639243,198.95,198.92,8.72907923]
[1739285397442,0.03639243,198.95,198.92,13.75537923]
[1739285397846,0.03639243,198.95,198.92,8.72907923]
[1739285398649,0.03639243,198.95,198.91,5.06077844]
[1739285399052,0.03639243,198.95,198.91,0.03427844]
[1739285400344,0.03639243,198.95,198.92,5.0263]
[1739285400947,0.03639243,198.95,198.91,0.03427844]
[1739285401548,5.06209243,198.95,198.91,0.03427844]
[1739285401750,0.03639243,198.95,198.91,0.03427844]
[1739285402253,0.03639243,198.95,198.91,5.06067844]
[1739285402453,0.03639243,198.95,198.94,8.72907923]
[1739285404348,0.03639243,198.95,198.94,13.75487923]
[1739285405150,8.72907923,199.05,198.94,8.72907923]
[1739285405355,8.72907923,199.05,198.98,8.72907923]
[1739285406057,5.0236,199.04,198.98,8.72907923]
[1739285406252,0.03546019,199.03,199.0,0.0375718]
[1739285408349,13.62737579,199.02,199.0,0.0375718]
[1739285408750,5.0241,199.01,199.0,0.0375718]
[1739285410665,0.03546019,199.03,199.0,0.0375718]
[1739285412058,5.0241,199.01,199.0,0.0375718]
[1739285416455,5.0256,198.96,198.91,5.0266]
[1739285416659,13.62737579,198.99,198.88,13.62737579]
[1739285416860,5.0258,198.95,198.89,5.0271]
[1739285417256,13.62737579,198.99,198.85,13.62737579]
[1739285417457,1.4775,199.02,198.85,13.62737579]
[1739285417458,13.62737579,198.96,198.88,5.0273]
[1739285417662,0.03340742,198.94,198.9,0.03778544]
[1739285417862,0.03340742,198.94,198.9,5.06458544]
[1739285418463,0.03340742,198.94,198.9,0.03778544]
[1739285418656,5.05930742,198.94,198.9,0.03778544]
[1739285418853,0.03340742,198.94,198.9,0.03778544]
[1739285419967,0.03340742,198.94,198.9,5.06458544]
[1739285421565,0.03340742,198.94,198.9,0.03778544]
[1739285422161,191.0,199.05,198.91,13.62737579]
[1739285422365,149.2908709,199.08,198.95,18.65277579]
[1739285422667,5.0236,199.03,198.95,13.62737579]
[1739285423258,5.06196413,199.01,198.97,0.03558152]
[1739285423767,0.03786413,199.01,198.97,0.03558152]
[1739285423967,5.0248,198.98,198.97,0.03558152]
[1739285425865,5.06206413,199.01,198.97,0.03558152]
[1739285426270,0.03786413,199.01,198.97,0.03558152]
[1739285426669,5.0245,199.0,198.97,0.03558152]
[1739285426974,0.03786413,199.01,198.97,0.03558152]
[1739285427178,5.0246,199.0,198.97,0.03558152]
[1739285428272,0.03786413,199.01,198.97,0.03558152]
[1739285428273,5.06196413,199.01,198.97,0.03558152]
[1739285428473,0.03786413,199.01,198.97,0.03558152]
[1739285430477,5.06216413,199.01,198.97,0.03558152]
[1739285430976,5.0244,199.0,198.97,0.03558152]
[1739285432272,5.0246,198.99,198.97,0.03558152]
[1739285432677,0.03786413,199.01,198.97,0.03558152]
[1739285432975,5.0245,199.0,198.97,0.03558152]
[1739285433175,0.03786413,199.01,198.97,0.03558152]
[1739285433769,5.0244,199.0,198.97,0.03558152]
[1739285434370,0.03786413,199.01,198.97,0.03558152]
[1739285434575,5.0246,198.99,198.97,0.03558152]
[1739285436081,0.03786413,199.01,198.97,0.03558152]
[1739285436284,5.0244,199.0,198.97,0.03558152]
[1739285436480,0.03786413,199.01,198.97,0.03558152]
[1739285437180,5.0244,199.0,198.97,0.03558152]
[1739285437582,5.0246,198.99,198.97,0.03558152]
[1739285437876,0.03786413,199.01,198.97,0.03558152]
[1739285438282,5.0248,198.99,198.97,0.03558152]
[1739285438782,0.03786413,199.01,198.97,0.03558152]
[1739285438982,5.0248,198.98,198.97,0.03558152]
[1739285439180,0.03786413,199.01,198.97,0.03558152]
[1739285439881,5.0248,198.99,198.97,0.03558152]
[1739285441785,0.03786413,199.01,198.97,0.03558152]
[1739285441986,5.0248,198.98,198.97,0.03558152]
[1739285442178,0.03786413,199.01,198.97,0.03558152]
[1739285442682,5.0247,198.99,198.97,0.03558152]
[1739285443073,0.03786413,199.01,198.97,0.03558152]
[1739285443275,5.0248,198.98,198.97,0.03558152]
[1739285445278,8.76564401,199.01,198.97,0.03558152]
[1739285445480,5.0246,198.99,198.97,0.03558152]
[1739285446182,13.75237988,198.99,198.97,0.03558152]
[1739285446688,5.0248,198.98,198.97,0.03558152]
[1739285448990,8.72777988,198.99,198.87,8.72777988]
[1739285449189,13.75377988,198.94,198.87,8.72777988]
[1739285449386,8.72777988,198.94,198.87,8.72777988]
[1739285449593,13.75327988,198.96,198.89,8.72777988]
[1739285449889,5.0255,198.96,198.89,8.72777988]
[1739285450089,13.75327988,198.96,198.9,5.0268]
[1739285450285,13.75327988,198.96,198.91,0.03594978]
[1739285450286,0.03546643,198.94,198.91,0.03594978]
[1739285451187,8.76324631,198.94,198.91,0.03594978]
[1739285453787,8.72777988,198.92,198.91,0.03594978]
[1739285454894,13.75417988,198.92,198.91,0.03594978]
[1739285455285,8.72777988,198.92,198.79,8.72777988]
[1739285455493,5.0299,198.78,198.76,54.80982234]
[1739285455695,8.72777988,198.77,198.7,204.41949497]
[1739285455993,8.72777988,198.75,198.7,204.41949497]
[1739285456296,12.55051576,198.75,198.74,12.63168297]
[1739285456598,12.55051576,198.75,198.72,55.73193827]
[1739285456794,12.55051576,198.75,198.72,7.75049242]
[1739285456795,13.75907988,198.73,198.72,7.75049242]
[1739285457095,17.58181576,198.73,198.72,7.75049242]
[1739285457498,0.03353782,198.76,198.72,16.4782723]
[1739285457696,13.65973398,198.84,198.73,1.4989]
[1739285458200,3.268855,198.83,198.73,1.4989]
[1739285458401,13.65973398,198.84,198.73,1.4989]
[1739285458402,3.268855,198.82,198.73,1.4989]
[1739285458595,1.25725192,198.81,198.75,5.0306]
[1739285458794,1.25725192,198.8,198.75,5.0306]
[1739285458995,1.25720251,198.79,198.76,0.03168403]
[1739285459195,0.0324781,198.8,198.76,5.06198403]
[1739285459497,18.68663398,198.9,198.76,0.03168403]
[1739285459498,13.65973398,198.9,198.76,0.03168403]
[1739285459795,82.84086603,198.84,198.75,13.65973398]
[1739285459997,82.84086603,198.84,198.77,5.03]
[1739285460190,82.84086603,198.84,198.79,13.65973398]
[1739285460396,82.84086603,198.84,198.76,13.65973398]
[1739285460596,0.03339037,198.82,198.8,5.0293]
[1739285461492,13.65973398,198.93,198.79,13.65973398]
[1739285461702,3.26760959,198.92,198.86,13.65973398]
[1739285461994,82.84086603,198.96,198.9,5.0269]
[1739285462199,1.25635468,198.95,198.9,5.0269]
[1739285462401,82.84086603,198.96,198.86,13.65973398]
[1739285462600,82.84086603,198.96,198.94,5.0258]
[1739285462800,82.84086603,198.96,198.92,13.65973398]
[1739285463204,0.0339394,198.97,198.96,5.0253]
[1739285463500,2.00955375,199.03,198.95,13.65973398]
[1739285463702,1.25596022,199.02,198.93,1.5603]
[1739285463902,1.25596022,199.01,198.96,5.0251]
[1739285464098,1.25596022,199.0,198.96,5.0251]
[1739285464302,2.00939901,199.03,198.96,5.0251]
[1739285464606,0.03666457,199.01,198.98,0.03411568]
[1739285464803,1.25588232,199.0,198.98,0.03411568]
[1739285465002,0.03666457,199.01,198.98,0.03411568]
[1739285465003,0.03666457,199.01,198.98,5.05891568]
[1739285465204,0.03666457,199.01,198.98,0.03411568]
[1739285465400,204.7773634,199.13,198.98,21.84325698]
[1739285465599,3.26426212,199.12,199.05,5.023]
[1739285465806,3.26426212,199.11,199.05,5.023]
[1739285466104,3.26428692,199.1,198.99,1.4876]
[1739285466404,1.25549497,199.09,198.99,1.4876]
[1739285466604,0.03392609,199.06,199.03,0.03493062]
[1739285466808,2.00872649,199.1,199.03,0.03493062]
[1739285467100,0.03857241,199.06,199.03,0.03493062]
[1739285470496,1.25568176,199.05,199.03,0.03493062]
[1739285470695,0.03857241,199.06,199.03,0.03493062]
[1739285470898,5.04599641,199.05,199.03,0.03493062]
[1739285471103,3.79027442,199.05,199.03,0.03493062]
[1739285471499,0.03857241,199.06,199.03,0.03493062]
[1739285473007,5.04301019,199.12,199.03,0.03493062]
[1739285473208,3.78759471,199.12,199.03,0.03493062]
[1739285473707,21.9420413,199.17,199.03,0.03493062]
[1739285473905,1.25518981,199.14,199.03,0.03493062]
[1739285474107,1.25530576,199.13,199.01,21.8091413]
[1739285474406,1.25530576,199.13,199.07,0.03371213]
[1739285474407,0.03790864,199.1,199.07,0.03371213]
[1739285474800,6.31539449,199.1,199.07,0.03371213]
[1739285475001,0.03790864,199.1,199.07,0.03371213]
[1739285475197,5.0229,199.06,198.99,1.4876]
[1739285475397,21.8091413,199.08,198.96,1.589]
[1739285475709,1.25565023,199.07,198.96,1.589]
[1739285475906,21.8091413,199.08,198.96,1.589]
[1739285476207,1.25568572,199.07,198.96,1.589]
[1739285476407,0.03196873,199.04,199.0,0.03477493]
[1739285477706,5.0241,199.01,199.0,0.03477493]
[1739285480910,5.0241,199.01,198.9,1.5007]
[1739285480911,1.25608845,199.01,198.9,1.5007]
[1739285481106,1.25608845,199.0,198.9,1.5007]
[1739285481308,21.8091413,198.99,198.9,1.5007]
[1739285481814,5.0261,198.93,198.9,1.5007]
[1739285482206,5.0261,198.93,198.9,1.53913164]
[1739285482411,5.0258,198.95,198.9,0.03843164]
[1739285482713,0.03851488,198.96,198.9,0.03843164]
[1739285484816,5.0266,198.91,198.9,0.03843164]
[1739285487607,21.84765618,198.96,198.9,0.03843164]
[1739285487816,0.03851488,198.96,198.9,0.03843164]
[1739285488323,5.0264,198.92,198.9,0.03843164]
[1739285488716,21.84765618,198.96,198.9,0.03843164]
[1739285488918,5.0266,198.91,198.9,0.03843164]
[1739285489422,5.0281,198.86,198.84,1.4635]
[1739285490116,5.0278,198.87,198.84,1.4635]
[1739285490313,21.8091413,198.93,198.84,1.4635]
[1739285490314,2.01086211,198.92,198.84,1.4635]
[1739285490512,1.25678882,198.91,198.81,1.5385]
[1739285490718,5.0276,198.87,198.86,0.03626829]
[1739285491418,21.84620078,198.9,198.86,0.03626829]
[1739285491617,5.0274,198.88,198.86,0.03626829]
[1739285492420,5.0276,198.87,198.86,0.03626829]
[1739285494324,0.03705948,198.9,198.86,0.03626829]
[1739285495023,5.0276,198.87,198.86,0.03626829]
[1739285495918,6.28457207,198.87,198.86,0.03626829]
[1739285496127,5.0276,198.87,198.86,0.03626829]
[1739285498725,21.84620078,198.9,198.77,5.0301]
[1739285498925,5.029,198.82,198.77,5.0301]
[1739285499129,5.029,198.82,198.76,6.5084]
[1739285499624,13.65933701,198.86,198.76,6.5084]
[1739285500125,0.03297154,198.83,198.79,0.03832957]
[1739285500529,13.69230855,198.83,198.79,0.03832957]
[1739285500823,5.0294,198.8,198.79,0.03832957]
[1739285501326,5.0293,198.81,198.79,0.03832957]
[1739285501525,13.65933701,198.8,198.79,0.03832957]
[1739285501926,18.68873701,198.8,198.79,0.03832957]
[1739285504127,0.03297154,198.83,198.73,13.65933701]
[1739285504329,96.50020304,198.86,198.74,1.5337]
[1739285505030,5.029,198.82,198.76,5.0302]
[1739285505227,0.03312149,198.82,198.78,0.03658899]
[1739285505623,5.0272,198.89,198.81,5.0291]
[1739285505929,82.84086603,198.9,198.82,1.6106]
[1739285506129,87.86776603,198.9,198.83,6.5021]
[1739285506330,82.84086603,198.9,198.83,1.4735]
[1739285506730,5.0279,198.86,198.85,0.03456594]
[1739285507125,21.87454123,198.88,198.75,3.0841]
[1739285507329,21.84092998,198.85,198.76,5.0304]
[1739285507634,21.84092998,198.91,198.75,3.0841]
[1739285507828,89.12485018,198.9,198.82,5.0289]
[1739285508029,87.86796603,198.9,198.77,21.84092998]
[1739285508229,0.03444875,198.88,198.84,0.03440735]
[1739285508832,82.84086603,198.9,198.84,0.03440735]
[1739285509129,57.04294388,199.0,198.84,3.20600735]
[1739285509435,1.25632195,198.99,198.86,21.84092998]
[1739285509633,1.25632195,198.98,198.86,21.84092998]
[1739285509830,3.77541284,198.98,198.86,21.84092998]
[1739285510030,0.03567982,198.94,198.9,0.03306315]
[1739285510630,0.03567982,198.94,198.9,5.05986315]
[1739285511127,8.80021284,198.98,198.9,5.05986315]
[1739285511128,3.77541284,198.98,198.92,5.0263]
[1739285511332,3.77541284,198.98,198.92,21.84092998]
[1739285511735,3.77541284,199.03,198.92,21.84092998]
[1739285512036,1.2559924,199.02,198.89,21.84092998]
[1739285512233,3.77541284,199.03,198.89,21.84092998]
[1739285512429,0.03434123,198.99,198.96,0.03407745]
[1739285515437,2.00940709,199.06,198.96,0.03407745]
[1739285515638,1.25584941,199.05,198.96,0.03407745]
[1739285515839,6.27934941,199.04,198.96,0.03407745]
[1739285516040,3.78292457,199.05,198.96,0.03407745]
[1739285516343,3.78292457,199.05,198.99,5.0245]
[1739285516530,0.03654884,199.04,198.99,5.0245]
[1739285516835,0.03654884,199.04,199.0,0.03207009]
[1739285519343,0.03654884,199.04,199.0,5.05637009]
[1739285520135,0.03654884,199.04,199.0,0.03207009]
[1739285523042,5.0241,199.01,199.0,0.03207009]
[1739285525048,0.03654884,199.04,199.0,0.03207009]
[1739285526343,3.78448679,199.06,199.0,0.03207009]
[1739285526950,8.80628679,199.11,199.04,5.0233]
[1739285527147,3.78448679,199.11,199.01,1.5281]
[1739285527457,8.80558679,199.13,199.06,5.0228]
[1739285527655,0.03662629,199.08,199.06,5.0228]
[1739285528253,0.03662629,199.08,199.07,5.0226]
[1739285528649,0.03662629,199.08,199.06,5.0228]
[1739285529358,23.43852998,199.18,199.04,0.03325535]
[1739285529552,1.25520558,199.17,199.03,21.84092998]
[1739285529751,88.13644668,199.22,199.13,5.0208]
[1739285529947,1.25498714,199.21,199.09,21.84092998]
[1739285530151,3.77654443,199.21,199.1,1.4662]
[1739285530546,0.03511558,199.17,199.14,0.03411489]
[1739285530746,0.03511558,199.17,199.16,5.0203]
[1739285531452,0.03511558,199.17,199.14,0.03411489]
[1739285532762,5.0203,199.16,199.14,0.03411489]
[1739285533358,5.0205,199.15,199.14,0.03411489]
[1739285533659,21.87604556,199.17,199.03,1.5069]
[1739285533853,5.0218,199.1,199.03,1.5069]
[1739285534255,21.84092998,199.14,199.03,1.5069]
[1739285534653,5.0218,199.11,199.03,1.5069]
[1739285534955,0.03689443,199.1,199.07,0.03609049]
[1739285535564,5.0223,199.08,199.07,0.03609049]
[1739285536159,5.0221,199.09,199.07,0.03609049]
[1739285536360,0.03689443,199.1,199.07,0.03609049]
[1739285536958,5.0221,199.09,199.07,0.03609049]
[1739285537352,5.0223,199.08,199.07,0.03609049]
[1739285538362,5.05889443,199.1,199.07,0.03609049]
[1739285538660,0.03689443,199.1,199.07,0.03609049]
[1739285539066,83.11744668,199.17,199.1,5.0217]
[1739285539458,88.13754668,199.17,199.1,5.0217]
[1739285539854,83.11744668,199.17,199.08,1.5632]
[1739285540058,169.12509388,199.2,199.08,1.5632]
[1739285540059,5.0203,199.16,199.08,1.5632]
[1739285540264,0.03756131,199.14,199.11,0.0334165]
[1739285541264,5.0211,199.13,199.11,0.0334165]
[1739285541465,0.03756131,199.14,199.11,0.0334165]
[1739285541762,5.0213,199.12,199.11,0.0334165]
[1739285543961,21.87849129,199.14,199.02,1.5141]
[1739285544162,21.84092998,199.14,199.02,1.5141]
[1739285544566,3.76435521,199.13,199.02,1.5141]
[1739285544963,0.03387125,199.09,199.06,0.03724372]
[1739285545465,3.76435521,199.13,199.06,21.8781737]
[1739285545662,1.32745521,199.13,199.12,5.0213]
[1739285545865,1.32745521,199.13,199.1,1.5034]
[1739285546265,83.11744668,199.22,199.1,1.5034]
[1739285546466,1.25481238,199.21,199.1,1.5034]
[1739285546666,0.03424424,199.18,199.14,0.03412113]
[1739285547769,5.0205,199.15,199.14,0.03412113]
[1739285548273,0.03424424,199.18,199.14,0.03412113]
[1739285548473,1.25504799,199.17,199.14,0.03412113]
[1739285548770,1.25504799,199.16,199.14,0.03412113]
[1739285548970,1.25504799,199.15,199.14,0.03412113]
[1739285549166,6.27554799,199.15,199.14,0.03412113]
[1739285549469,0.03424424,199.18,199.14,0.03412113]
[1739285549659,1.25496726,199.17,199.14,0.03412113]
[1739285549861,0.03424424,199.18,199.14,0.03412113]
[1739285551969,0.03424424,199.18,199.16,5.0201]
[1739285552975,0.03424424,199.18,199.14,5.05472113]
[1739285553873,0.03424424,199.18,199.15,5.0205]
[1739285555975,0.03424424,199.18,199.17,5.02]
[1739285557475,0.03424424,199.18,199.14,0.03412113]
[1739285558778,0.03424424,199.18,199.17,5.02]
[1739285558973,20.34652871,199.25,199.14,0.03412113]